bitfinex/quotes_BTCUSD_20241120
["timestamp","ask_amount","ask_price","bid_price","bid_amount"]
[1732141758615,0.37316954,94192.0,94191.0,0.0002]
[1732141758813,0.37208112,94192.0,94191.0,0.0002]
[1732141759758,0.37308112,94192.0,94191.0,0.0002]
[1732141760090,0.48214367,94192.0,94191.0,0.0002]
[1732141760271,0.48314367,94192.0,94191.0,0.0002]
[1732141761839,0.49833447,94192.0,94191.0,0.0002]
[1732141762383,0.5413328,94192.0,94191.0,0.0002]
[1732141763433,0.526142,94192.0,94191.0,0.0002]
[1732141763927,0.54127068,94192.0,94191.0,0.0002]
[1732141765476,0.6356571,94192.0,94191.0,0.0002]
[1732141766178,0.54127068,94192.0,94191.0,0.0010562]
[1732141766387,0.6356571,94192.0,94191.0,0.0010562]
[1732141766605,0.55767668,94192.0,94191.0,0.0010562]
[1732141766838,0.65201264,94192.0,94191.0,0.0010562]
[1732141767047,0.65201224,94192.0,94191.0,0.0010562]
[1732141767373,0.54121285,94192.0,94191.0,0.0010562]
[1732141767617,0.63559124,94192.0,94191.0,0.0010562]
[1732141768340,0.54121285,94192.0,94191.0,0.0010562]
[1732141768839,0.63559433,94192.0,94191.0,0.0010562]
[1732141768976,0.54121285,94192.0,94191.0,0.0010562]
[1732141770061,0.6355978,94192.0,94191.0,0.0010562]
[1732141770301,0.116188,94172.0,94171.0,0.0002]
[1732141770471,0.39316239,94172.0,94171.0,0.0002]
[1732141770700,0.39207397,94172.0,94171.0,0.0002]
[1732141770828,0.37700312,94172.0,94171.0,0.0002]
[1732141771032,0.37900312,94172.0,94171.0,0.0002]
[1732141771236,0.39409212,94172.0,94171.0,0.0002]
[1732141771436,0.40918096,94172.0,94171.0,0.0002]
[1732141771675,0.39409196,94172.0,94171.0,0.0002]
[1732141773589,0.10711512,94153.0,94150.0,0.01039412]
[1732141773960,0.106212,94151.0,94150.0,0.00039412]
[1732141774165,0.10711512,94151.0,94150.0,0.00039412]
[1732141774389,0.10711512,94151.0,94150.0,0.00139412]
[1732141775145,0.106221,94143.0,94130.0,0.0745]
[1732141775353,0.106221,94143.0,94124.0,0.0008568]
[1732141775354,0.106241,94125.0,94124.0,0.0008568]
[1732141775569,0.39812032,94125.0,94124.0,0.0008568]
[1732141775770,0.55430383,94125.0,94124.0,0.0008568]
[1732141775975,0.48807946,94125.0,94124.0,0.0008568]
[1732141777223,0.141243,94123.0,94122.0,0.00056399]
[1732141777425,0.28540372,94123.0,94122.0,0.00056399]
[1732141777622,0.2843153,94123.0,94122.0,0.00056399]
[1732141777852,0.61311572,94123.0,94122.0,0.00056399]
[1732141778085,0.66043405,94123.0,94122.0,0.00056399]
[1732141778555,0.64561059,94123.0,94122.0,0.00056399]
[1732141778775,0.66043405,94123.0,94122.0,0.00056399]
[1732141778988,0.64761059,94123.0,94122.0,0.00056399]
[1732141779195,0.66243405,94123.0,94122.0,0.00056399]
[1732141779397,0.66636972,94123.0,94122.0,0.00056399]
[1732141780035,0.68119318,94123.0,94122.0,0.00056399]
[1732141780247,0.69100136,94123.0,94122.0,0.00056399]
[1732141780708,0.69100136,94123.0,94111.0,0.0002]
[1732141780709,0.139256,94112.0,94111.0,0.0002]
[1732141780914,0.4095552,94112.0,94111.0,0.0002]
[1732141781175,0.41046678,94112.0,94111.0,0.0002]
[1732141781990,0.60688416,94112.0,94111.0,0.0002]
[1732141782262,0.60688416,94112.0,94096.0,0.0008562]
[1732141782263,0.106273,94097.0,94096.0,0.0008562]
[1732141782494,0.29552437,94097.0,94096.0,0.0008562]
[1732141782762,0.29443595,94097.0,94096.0,0.0008562]
[1732141783270,0.31743595,94097.0,94096.0,0.0008562]
[1732141783502,0.49664149,94097.0,94096.0,0.0008562]
[1732141783765,0.41301096,94097.0,94096.0,0.0008562]
[1732141783993,0.45518898,94097.0,94096.0,0.0008562]
[1732141784251,0.29309332,94097.0,94096.0,0.0008562]
[1732141784515,0.9506618,94097.0,94096.0,0.0008562]
[1732141784750,0.54778898,94097.0,94096.0,0.0008562]
[1732141784984,0.65685153,94097.0,94096.0,0.0008562]
[1732141785940,0.65885153,94097.0,94096.0,0.0008562]
[1732141786202,0.55278898,94097.0,94096.0,0.0008562]
[1732141786711,1.05278898,94097.0,94096.0,0.0008562]
[1732141787492,0.30137366,94092.0,94091.0,0.0002]
[1732141787754,0.40848878,94092.0,94091.0,0.0002]
[1732141787967,0.21312393,94092.0,94091.0,0.0002]
[1732141788176,0.19816295,94092.0,94091.0,0.0002]
[1732141788372,0.21312368,94092.0,94091.0,0.00192438]
[1732141788575,0.21312368,94092.0,94091.0,0.0002]
[1732141788845,0.21612368,94092.0,94091.0,0.0002]
[1732141789064,0.21604215,94092.0,94091.0,0.0002]
[1732141789351,0.21713057,94092.0,94091.0,0.0002]
[1732141789567,0.11011512,94092.0,94091.0,0.10648]
[1732141789791,0.11011512,94092.0,94091.0,0.11820223]
[1732141790755,0.10911512,94092.0,94091.0,0.11820223]
[1732141790983,0.10911512,94092.0,94084.0,0.106287]
[1732141790984,0.10911512,94092.0,94085.0,0.106286]
[1732141791207,0.10711512,94092.0,94091.0,0.10789757]
[1732141791437,0.10711512,94092.0,94091.0,0.10628]
[1732141791667,0.01470772,94112.0,94092.0,0.106278]
[1732141791952,0.01022195,94110.0,94109.0,0.106258]
[1732141792199,0.04328553,94124.0,94115.0,0.106252]
[1732141792434,0.00663477,94141.0,94115.0,0.218952]
[1732141792690,0.08104783,94147.0,94115.0,0.33051039]
[1732141792915,0.00108842,94149.0,94145.0,0.106219]
[1732141792916,0.01504515,94149.0,94145.0,0.106219]
[1732141793160,0.10711512,94148.0,94147.0,0.106216]
[1732141794370,0.10711512,94148.0,94145.0,0.106219]
[1732141794371,0.0017134,94153.0,94152.0,0.106211]
[1732141800736,0.10882852,94153.0,94144.0,0.106219]
[1732141800968,0.10882852,94153.0,94126.0,0.0463]
[1732141800969,0.10711512,94152.0,94129.0,0.01]
[1732141801422,0.10711512,94152.0,94128.0,0.1]
[1732141801423,0.21351242,94151.0,94134.0,0.106231]
[1732141801636,0.10711512,94150.0,94135.0,0.1]
[1732141801811,0.212431,94148.0,94137.0,0.1]
[1732141802015,0.22832503,94150.0,94114.0,0.01]
[1732141802016,0.16014933,94147.0,94114.0,0.01]
[1732141802215,0.16014933,94147.0,94109.0,0.106259]
[1732141802216,0.023,94141.0,94109.0,0.106259]
[1732141802425,0.212454,94138.0,94120.0,0.106247]
[1732141802624,0.106246,94121.0,94104.0,0.106264]
[1732141802805,0.10711512,94120.0,94117.0,0.106249]
[1732141803002,0.10711512,94120.0,94119.0,0.106248]
[1732141803375,0.10711512,94120.0,94117.0,0.10625]
[1732141803841,0.10711512,94120.0,94105.0,0.106264]
[1732141803842,0.212482,94126.0,94029.0,0.0008567]
[1732141803843,0.649344,94034.0,94029.0,0.0008567]
[1732141804112,0.89176382,94034.0,94029.0,0.0008567]
[1732141804395,1.08061097,94034.0,94029.0,0.0008567]
[1732141804645,0.87055391,94034.0,94029.0,0.0008567]
[1732141804896,1.00490921,94034.0,94029.0,0.0008567]
[1732141805110,0.8846215,94034.0,94029.0,0.0008567]
[1732141805572,0.8936215,94034.0,94029.0,0.0008567]
[1732141805799,1.10979917,94034.0,94029.0,0.0008567]
[1732141806032,1.10079917,94034.0,94029.0,0.0008567]
[1732141806262,1.08673158,94034.0,94029.0,0.0008567]
[1732141806502,0.9915489,94034.0,94029.0,0.0008567]
[1732141806695,1.05308753,94034.0,94029.0,0.0008567]
[1732141807291,1.06208753,94034.0,94029.0,0.0008567]
[1732141807575,1.07526031,94034.0,94029.0,0.0008567]
[1732141807756,0.251349,94030.0,94029.0,0.0008567]
[1732141807971,0.35646412,94030.0,94029.0,0.0008567]
[1732141808094,0.35846412,94030.0,94029.0,0.0008567]
[1732141809037,0.37646412,94030.0,94029.0,0.0008567]
[1732141810334,0.36746412,94030.0,94029.0,0.0008567]
[1732141810555,0.35846412,94030.0,94029.0,0.0008567]
[1732141810771,0.36746412,94030.0,94029.0,0.0008567]
[1732141810955,0.37646412,94030.0,94029.0,0.0008567]
[1732141811218,0.36746412,94030.0,94029.0,0.0008567]
[1732141811749,0.36546412,94030.0,94029.0,0.0008567]
[1732141811995,0.37446412,94030.0,94029.0,0.0008567]
[1732141812215,0.37646412,94030.0,94029.0,0.0008567]
[1732141812460,0.36546412,94030.0,94029.0,0.0008567]
[1732141813180,0.36746412,94030.0,94029.0,0.0008567]
[1732141813902,0.36746412,94030.0,93996.0,0.0008567]
[1732141813903,0.002,94007.0,93996.0,0.0008567]
[1732141814114,0.10711512,94006.0,93996.0,0.0008567]
[1732141814957,0.10711512,94006.0,93996.0,0.1072437]
[1732141815473,0.10711512,94006.0,93998.0,0.106385]
[1732141815710,0.10711512,94006.0,93997.0,0.106386]
[1732141816382,0.002,94002.0,93997.0,0.106386]
[1732141816601,0.10911512,94002.0,93996.0,0.0008567]
[1732141816825,0.10911512,94002.0,93997.0,0.106386]
[1732141817778,0.002,93997.0,93996.0,0.1072437]
[1732141818017,0.002,93999.0,93996.0,0.1072437]
[1732141818268,0.10711512,93998.0,93996.0,0.0008567]
[1732141818490,0.002,93997.0,93996.0,0.0008567]
[1732141818729,0.10911512,93997.0,93996.0,0.0008567]
[1732141818982,0.10911512,93997.0,93993.0,0.10639]
[1732141819208,0.002,93995.0,93993.0,0.10639]
[1732141819456,0.10711512,93995.0,93993.0,0.10639]
[1732141819720,0.10711512,93995.0,93994.0,0.106389]
[1732141821783,0.10711512,93995.0,93973.0,0.01]
[1732141822012,0.002,93991.0,93990.0,0.106394]
[1732141822699,0.10711512,93994.0,93993.0,0.10639]
[1732141828136,0.10711512,93994.0,93993.0,0.1072481]
[1732141829394,0.00280462,94006.0,93994.0,0.106389]
[1732141829599,0.00280462,94006.0,93993.0,0.0008581]
[1732141829600,0.10711512,94005.0,94001.0,0.106381]
[1732141830025,0.10711512,94005.0,94004.0,0.106378]
[1732141830236,0.10711512,94005.0,94001.0,0.106381]
[1732141830461,0.10711512,94005.0,94004.0,0.106378]
[1732141832342,0.12120539,94005.0,94004.0,0.106378]
[1732141832551,0.12120539,94005.0,94001.0,0.106381]
[1732141832758,0.10711512,94005.0,94004.0,0.106378]
[1732141832933,0.12126703,94005.0,94004.0,0.106378]
[1732141836207,0.01415191,94005.0,94004.0,0.106378]
[1732141836624,0.01415191,94005.0,94004.0,0.216378]
[1732141836828,0.0017162,94006.0,94005.0,0.02]
[1732141836955,0.0017162,94006.0,94005.0,0.226377]
[1732141843193,0.0017162,94006.0,94005.0,0.216377]
[1732141844030,0.0017162,94006.0,94005.0,0.21744054]
[1732141845004,0.0017162,94006.0,94005.0,0.32455566]
[1732141845233,2e-07,94006.0,94005.0,0.32349212]
[1732141846221,0.01365926,94035.0,94020.0,0.1]
[1732141846433,0.01365926,94035.0,94006.0,0.1952]
[1732141846434,0.01,94050.0,94046.0,0.106329]
[1732141846630,0.01,94050.0,94039.0,0.1]
[1732141846631,0.01,94046.0,94045.0,0.106331]
[1732141846860,0.01362992,94046.0,94045.0,0.106331]
[1732141847292,0.01,94058.0,94057.0,0.106318]
[1732141847497,0.12079886,94058.0,94057.0,0.106318]
[1732141847711,0.13079886,94058.0,94057.0,0.106318]
[1732141847925,0.11711512,94058.0,94057.0,0.106318]
[1732141848143,0.10711512,94058.0,94057.0,0.106318]
[1732141848553,0.11711512,94058.0,94057.0,0.106318]
[1732141849670,0.14122903,94072.0,94068.0,0.01]
[1732141849888,0.28152731,94088.0,94068.0,0.01]
[1732141849889,0.002,94086.0,94083.0,0.106289]
[1732141850090,0.11711512,94084.0,94083.0,0.106289]
[1732141850740,0.002,94079.0,94068.0,0.01]
[1732141850950,0.11711512,94078.0,94077.0,0.106295]
[1732141852242,0.11711512,94078.0,94071.0,0.106302]
[1732141852243,0.01,94072.0,94071.0,0.106302]
[1732141852444,0.11711512,94072.0,94067.0,0.106306]
[1732141852660,0.11711512,94071.0,94070.0,0.106303]
[1732141852867,0.012,94066.0,94065.0,0.086309]
[1732141853073,0.11911512,94066.0,94065.0,0.086309]
[1732141854393,0.11911512,94066.0,94053.0,0.01]
[1732141854394,0.002,94058.0,94057.0,0.1]
[1732141854601,0.10711512,94058.0,94057.0,0.1]
[1732141854812,0.10911512,94058.0,94057.0,0.106318]
[1732141855482,0.002,94054.0,94053.0,0.106322]
[1732141855685,0.002,94054.0,94049.0,0.106327]
[1732141855686,0.002,94050.0,94049.0,0.106327]
[1732141855895,0.002,94050.0,94048.0,0.106327]
[1732141855896,0.012,94054.0,94053.0,0.106323]
[1732141856544,0.012,94054.0,94044.0,0.11]
[1732141856545,0.01,94049.0,94048.0,0.106328]
[1732141856946,0.01,94049.0,94046.0,0.10633]
[1732141856947,0.012,94049.0,94046.0,0.10633]
[1732141857172,0.01,94047.0,94046.0,0.10633]
[1732141857408,0.212643,94055.0,94044.0,0.206332]
[1732141857409,0.002,94045.0,94044.0,0.106332]
[1732141857555,0.002,94045.0,94038.0,0.106338]
[1732141857556,0.002,94045.0,94043.0,0.106334]
[1732141857734,0.002,94045.0,94035.0,0.01]
[1732141857735,0.002,94042.0,94035.0,0.106343]
[1732141857941,0.002,94042.0,94041.0,0.106336]
[1732141858372,0.002,94042.0,94041.0,0.212672]
[1732141858644,0.002,94042.0,94041.0,0.312672]
[1732141859351,0.10911512,94042.0,94041.0,0.312672]
[1732141859552,0.01,94037.0,94036.0,0.106342]
[1732141859756,0.11711512,94037.0,94036.0,0.1]
[1732141859986,0.11711512,94037.0,94036.0,0.206342]
[1732141860205,0.11711512,94037.0,94036.0,0.106342]
[1732141860442,0.11911512,94037.0,94036.0,0.106342]
[1732141860669,0.11711512,94037.0,94027.0,0.03499473]
[1732141860893,0.10711512,94036.0,94035.0,0.106343]
[1732141863614,0.10911512,94036.0,94035.0,0.106343]
[1732141865906,0.002,94027.0,94026.0,0.106353]
[1732141866110,0.10911512,94027.0,94018.0,0.106362]
[1732141866323,0.01,94028.0,94016.0,0.01]
[1732141866324,0.10711512,94026.0,94025.0,0.106354]
[1732141871746,0.025,94039.0,94038.0,0.106339]
[1732141871958,0.10711512,94039.0,94038.0,0.106339]
[1732141877795,0.0017108,94046.0,94045.0,0.106332]
[1732141882326,0.0017108,94046.0,94012.0,0.09502164]
[1732141882327,0.021,94013.0,94012.0,0.09502164]
[1732141882545,0.021,94013.0,94002.0,0.0008558]
[1732141882546,0.01,94006.0,94002.0,0.09587744]
[1732141882748,0.14011512,94006.0,94002.0,0.0008558]
[1732141882958,0.18131074,94006.0,94002.0,0.0008558]
[1732141884397,0.14211512,94006.0,94002.0,0.0008558]
[1732141885346,0.14011512,94006.0,94002.0,0.0008558]
[1732141885567,0.14011512,94006.0,94005.0,0.1072324]
[1732141886098,0.14211512,94006.0,94005.0,0.1072324]
[1732141886607,0.14311512,94006.0,94005.0,0.1072324]
[1732141886863,0.14211512,94006.0,94005.0,0.1072324]
[1732141887649,0.14211512,94006.0,94005.0,0.0008554]
[1732141887896,0.14211512,94006.0,94005.0,0.1072324]
[1732141888648,0.14011512,94006.0,94005.0,0.1072324]
[1732141888941,0.01,94023.0,94022.0,0.106358]
[1732141889175,0.01,94027.0,94026.0,0.106353]
[1732141889924,0.01,94031.0,94029.0,0.10635]
[1732141890162,0.01,94031.0,94030.0,0.106349]
[1732141890395,0.1215839,94043.0,94030.0,0.106349]
[1732141890396,0.012,94035.0,94034.0,0.106344]
[1732141890872,0.012,94035.0,94034.0,0.101344]
[1732141891608,0.14211512,94035.0,94034.0,0.101344]
[1732141891856,0.023,94034.0,94024.0,0.106355]
[1732141892115,0.10711512,94033.0,94024.0,0.106355]
[1732141892370,0.10711512,94033.0,94023.0,0.106356]
[1732141892371,0.023,94032.0,94023.0,0.106356]
[1732141892635,0.10711512,94031.0,94023.0,0.212712]
[1732141892895,0.10711512,94031.0,94021.0,0.106358]
[1732141893158,0.10711512,94031.0,94023.0,0.106356]
[1732141893680,0.10711512,94031.0,94022.0,0.106357]
[1732141893930,0.10711512,94031.0,94021.0,0.106358]
[1732141894182,0.10711512,94031.0,94023.0,0.106356]
[1732141894432,0.10711512,94031.0,94012.0,0.212738]
[1732141894663,0.10711512,94031.0,94012.0,0.106369]
[1732141894901,0.10711512,94031.0,94023.0,0.106356]
[1732141895393,0.10711512,94031.0,94019.0,0.106361]
[1732141895909,0.10711512,94031.0,94022.0,0.106357]
[1732141896164,0.10711512,94031.0,94008.0,0.1]
[1732141896165,0.10711512,94031.0,94019.0,0.10636]
[1732141896428,0.002,94022.0,94015.0,0.1]
[1732141896699,0.10711512,94022.0,94015.0,0.1]
[1732141896887,0.10711512,94022.0,94005.0,0.0008554]
[1732141896888,0.023,94008.0,94005.0,0.0008554]
[1732141897096,0.10711512,94007.0,94005.0,0.0008554]
[1732141900316,0.033,94006.0,94005.0,0.0008554]
[1732141900517,0.24649112,94006.0,94005.0,0.0008554]
[1732141900737,0.14011512,94006.0,94005.0,0.0008554]
[1732141901376,0.24649112,94006.0,94005.0,0.0008554]
[1732141901796,0.24849112,94006.0,94005.0,0.0008554]
[1732141901994,0.023,93997.0,93980.0,0.106404]
[1732141902205,0.023,93995.0,93980.0,0.106404]
[1732141902410,0.10711512,93994.0,93980.0,0.106404]
[1732141902604,0.023,93993.0,93981.0,0.1]
[1732141902863,0.023,93991.0,93981.0,0.206404]
[1732141903088,0.10711512,93990.0,93978.0,0.1]
[1732141903298,0.10711512,93990.0,93981.0,0.1]
[1732141904119,0.10711512,93990.0,93981.0,0.206404]
[1732141904326,0.10711512,93990.0,93981.0,0.1]
[1732141904532,0.10711512,93990.0,93980.0,0.106404]
[1732141904745,0.10711512,93990.0,93981.0,0.1]
[1732141905177,0.10711512,93990.0,93981.0,0.206404]
[1732141905402,0.10711512,93990.0,93971.0,0.03549629]
[1732141905650,0.10711512,93990.0,93979.0,0.106406]
[1732141905887,0.10911512,93990.0,93978.0,0.106407]
[1732141906136,0.10711512,93990.0,93979.0,0.106406]
[1732141906371,0.10711512,93990.0,93980.0,0.106405]
[1732141906596,0.10911512,93990.0,93980.0,0.106405]
[1732141907053,0.10911512,93990.0,93971.0,0.03549629]
[1732141907256,0.10911512,93990.0,93981.0,0.106403]
[1732141907458,0.10911512,93990.0,93982.0,0.106402]
[1732141907663,0.10711512,93990.0,93982.0,0.106402]
[1732141909328,0.033,93989.0,93971.0,0.03549629]
[1732141909559,0.002,93986.0,93976.0,0.1]
[1732141909782,0.10711512,93985.0,93976.0,0.206409]
[1732141910250,0.10711512,93985.0,93978.0,0.1]
[1732141910508,0.10711512,93985.0,93978.0,0.206407]
[1732141910774,0.10711512,93985.0,93979.0,0.106405]
[1732141911005,0.10711512,93985.0,93978.0,0.1]
[1732141911239,0.10711512,93985.0,93979.0,0.106405]
[1732141911479,0.10711512,93985.0,93981.0,0.106404]
[1732141911716,0.10711512,93985.0,93980.0,0.106404]
[1732141911967,0.10711512,93985.0,93978.0,0.1]
[1732141912219,0.023,93984.0,93978.0,0.1]
[1732141912444,0.10711512,93983.0,93978.0,0.1]
[1732141912667,0.10711512,93983.0,93978.0,0.206407]
[1732141912882,0.10711512,93983.0,93978.0,0.1]
[1732141913111,0.002,93980.0,93976.0,0.1]
[1732141913292,0.10711512,93983.0,93977.0,0.106408]
[1732141913550,0.10711512,93983.0,93976.0,0.1]
[1732141913766,0.10711512,93983.0,93978.0,0.106407]
[1732141913972,0.10711512,93983.0,93977.0,0.106409]
[1732141914145,0.10711512,93983.0,93977.0,0.212818]
[1732141914385,0.10911512,93983.0,93977.0,0.106409]
[1732141914599,0.10911512,93983.0,93977.0,0.212817]
[1732141914802,0.002,93980.0,93978.0,0.106407]
[1732141915013,0.10711512,93983.0,93978.0,0.106407]
[1732141915633,0.10711512,93983.0,93978.0,0.212814]
[1732141915853,0.10711512,93983.0,93979.0,0.106406]
[1732141916057,0.10711512,93983.0,93976.0,0.1]
[1732141916058,0.10711512,93983.0,93977.0,0.117049]
[1732141916485,0.10711512,93983.0,93975.0,0.000856]
[1732141916692,0.10711512,93983.0,93980.0,0.106405]
[1732141917105,0.10711512,93983.0,93976.0,0.117051]
[1732141917312,0.10711512,93983.0,93981.0,0.106404]
[1732141917944,0.10711512,93983.0,93977.0,0.117049]
[1732141917945,0.10711512,93983.0,93979.0,0.106406]
[1732141918347,0.10711512,93983.0,93981.0,0.106404]
[1732141918887,0.10711512,93983.0,93982.0,0.106403]
[1732141920210,0.090512,93990.0,93981.0,0.106404]
[1732141920211,0.088512,93990.0,93981.0,0.106404]
[1732141920456,0.13011512,93989.0,93988.0,0.106396]
[1732141927380,0.13211512,93989.0,93988.0,0.106396]
[1732141930134,0.13011512,93989.0,93988.0,0.106396]
[1732141931039,0.13211512,93989.0,93988.0,0.106396]
[1732141931264,0.13675733,93989.0,93988.0,0.106396]
[1732141931493,0.13011512,93989.0,93988.0,0.106396]
[1732141931968,0.001712,93990.0,93989.0,0.106395]
[1732141932374,0.00835423,93990.0,93989.0,0.106395]
[1732141932588,0.001712,93990.0,93989.0,0.106395]
[1732141937188,0.001712,93990.0,93989.0,0.29045878]
[1732141937468,0.001712,93990.0,93989.0,0.289395]
[1732141937667,0.001712,93990.0,93989.0,0.31991313]
[1732141938279,0.001712,93990.0,93989.0,0.42702825]
[1732141938685,0.001712,93990.0,93989.0,0.54854077]
[1732141939300,1e-06,93990.0,93989.0,0.54854077]
[1732141940080,1e-06,94000.0,93999.0,0.106384]
[1732141940283,1e-06,94000.0,93999.0,0.24000092]
[1732141940507,1e-06,94000.0,93999.0,0.39218492]
[1732141940926,0.0829,94038.0,94037.0,0.106341]
[1732141940927,0.081612,94038.0,94037.0,0.106341]
[1732141941153,0.18872712,94038.0,94037.0,0.106341]
[1732141941331,0.19872712,94038.0,94037.0,0.106341]
[1732141941539,0.12151252,94053.0,94020.0,0.106359]
[1732141941540,0.0117108,94046.0,94032.0,0.00106335]
[1732141941741,0.0117108,94046.0,94023.0,0.03473081]
[1732141941742,0.0017108,94046.0,94045.0,0.106332]
[1732141942088,0.0247108,94046.0,94045.0,0.106332]
[1732141942301,0.10882592,94046.0,94045.0,0.106332]
[1732141942726,0.0017108,94046.0,94045.0,0.106332]
[1732141944159,0.0027108,94046.0,94045.0,0.106332]
[1732141944383,0.0017108,94046.0,94045.0,0.106332]
[1732141952138,0.0017108,94046.0,94045.0,0.18289519]
[1732141952364,0.0017108,94046.0,94045.0,0.28289519]
[1732141952602,0.0017108,94046.0,94045.0,0.281832]
[1732141956771,8e-07,94046.0,94045.0,0.38894712]
[1732141957741,8e-07,94046.0,94045.0,0.39094712]
[1732141958437,8e-07,94046.0,94045.0,0.38894712]
[1732141958927,8e-07,94046.0,94045.0,0.39094712]
[1732141959160,8e-07,94046.0,94045.0,0.38894712]
[1732141959623,8e-07,94046.0,94045.0,0.39094712]
[1732141960363,0.0017104,94065.0,94064.0,0.20571]
[1732141960641,0.6017104,94078.0,94077.0,0.106295]
[1732141962728,0.70882552,94078.0,94075.0,0.106297]
[1732141962967,0.10711512,94077.0,94075.0,0.106297]
[1732141963197,0.01,94075.0,93969.0,0.14149786]
[1732141963432,0.01,94075.0,93961.0,0.2895464]
[1732141963433,0.10711512,94074.0,94073.0,0.1063]
[1732141963659,0.10711512,94074.0,94042.0,0.10711512]
[1732141963902,0.11711512,94074.0,94068.0,0.106305]
[1732141964152,0.033,94073.0,94041.0,0.03490645]
[1732141964399,0.106303,94071.0,94065.0,0.106308]
[1732141964621,0.10711512,94070.0,94065.0,0.106308]
[1732141964874,0.10711512,94070.0,94067.0,0.106306]
[1732141965093,0.10711512,94070.0,94065.0,0.212616]
[1732141965320,0.10711512,94070.0,94066.0,0.106308]
[1732141965782,0.10711512,94070.0,94067.0,0.106306]
[1732141966055,0.10711512,94070.0,94067.0,0.076606]
[1732141966312,0.10711512,94070.0,94066.0,0.106307]
[1732141966547,0.10711512,94070.0,94066.0,0.212614]
[1732141966773,0.00663642,94069.0,94067.0,0.106306]
[1732141967007,0.00663642,94069.0,94060.0,0.106314]
[1732141967008,0.10711512,94069.0,94060.0,0.106314]
[1732141967244,0.00663662,94068.0,94062.0,0.106312]
[1732141967469,0.11375174,94068.0,94066.0,0.106308]
[1732141967702,0.11375174,94068.0,94043.0,0.1]
[1732141967703,0.11375174,94068.0,94064.0,0.106309]
[1732141968198,0.00663662,94067.0,94064.0,0.106309]
[1732141968423,0.00663662,94066.0,94064.0,0.106309]
[1732141968649,0.00663662,94065.0,94064.0,0.106309]
[1732141969092,0.00663662,94065.0,94061.0,0.106313]
[1732141969315,0.10711512,94065.0,94063.0,0.106311]
[1732141969557,0.10711512,94065.0,94061.0,0.212626]
[1732141969844,0.00663592,94064.0,94058.0,0.106316]
[1732141970082,0.00663592,94063.0,94061.0,0.106313]
[1732141970335,0.10711512,94065.0,94063.0,0.106311]
[1732141970584,0.03452978,94064.0,94063.0,0.106311]
[1732141972246,0.03452978,94064.0,94043.0,0.1]
[1732141972247,0.023,94050.0,93977.0,0.0792]
[1732141972511,0.28162764,94039.0,93995.0,0.106388]
[1732141972747,0.46529684,94039.0,94007.0,0.03509674]
[1732141972985,0.46529684,94039.0,94016.0,0.106364]
[1732141972986,0.033,94017.0,94016.0,0.106364]
[1732141973230,0.15737576,94017.0,94016.0,0.106364]
[1732141973473,0.15737873,94017.0,94016.0,0.106364]
[1732141973703,0.14675497,94017.0,94016.0,0.106364]
[1732141974170,0.14675497,94017.0,94006.0,0.1]
[1732141974395,0.033,94017.0,94016.0,0.106363]
[1732141974646,0.24721252,94039.0,94016.0,0.106363]
[1732141974647,0.1257,94039.0,94016.0,0.106363]
[1732141974891,0.023,94028.0,94020.0,0.106359]
[1732141975292,0.01062384,94027.0,94015.0,0.01]
[1732141975500,0.023,94028.0,94018.0,0.106361]
[1732141975716,0.023,94028.0,94015.0,0.01]
[1732141975896,0.023,94028.0,94018.0,0.106361]
[1732141976239,0.023,94028.0,94020.0,0.106359]
[1732141976446,0.023,94028.0,94022.0,0.106358]
[1732141977283,0.023,94028.0,94023.0,0.106356]
[1732141977481,0.10711512,94027.0,94026.0,0.106353]
[1732141981095,0.14160142,94027.0,94026.0,0.106353]
[1732141982254,0.10711512,94027.0,94026.0,0.106353]
[1732141983710,0.14197333,94027.0,94026.0,0.106353]
[1732141985173,0.14197333,94027.0,94026.0,0.1072082]
[1732141987029,0.0778,94043.0,94042.0,0.106335]
[1732141987194,0.18491512,94043.0,94042.0,0.106335]
[1732141987401,0.10711512,94043.0,94042.0,0.106335]
[1732141988047,0.0778,94052.0,94040.0,0.01]
[1732141988264,0.0778,94052.0,94051.0,0.106325]
[1732141988566,0.1123232,94052.0,94051.0,0.106325]
[1732141989302,0.0778,94052.0,94051.0,0.106325]
[1732141990983,0.0491,94063.0,94062.0,0.106312]
[1732141990984,0.0721,94063.0,94062.0,0.106312]
[1732141991139,0.17921512,94063.0,94062.0,0.106312]
[1732141991564,0.16445222,94063.0,94062.0,0.106312]
[1732141991765,0.16445222,94063.0,94062.0,0.102352]
[1732141992166,0.14145222,94063.0,94062.0,0.102352]
[1732141992371,0.10711512,94063.0,94062.0,0.102352]
[1732141992854,0.10711512,94063.0,94062.0,0.112352]
[1732141993055,0.10711512,94063.0,94060.0,0.116945]
[1732141993056,0.34304013,94067.0,94066.0,0.116308]
[1732141993264,0.45015525,94067.0,94066.0,0.116308]
[1732141994697,0.34304013,94067.0,94066.0,0.116308]
[1732141997251,0.34475113,94067.0,94066.0,0.116308]
[1732142009465,0.34475113,94067.0,94066.0,0.216308]
[1732142014382,0.34475113,94067.0,94066.0,0.236308]
[1732142014383,0.28096813,94067.0,94066.0,0.236308]
[1732142014583,0.23844613,94067.0,94066.0,0.236308]
[1732142015277,0.19592413,94067.0,94066.0,0.236308]
[1732142015506,0.17466313,94067.0,94066.0,0.236308]
[1732142015775,0.12966313,94067.0,94066.0,0.236308]
[1732142017583,0.10840213,94067.0,94066.0,0.236308]
[1732142018416,0.06588013,94067.0,94066.0,0.34342312]
[1732142018619,0.04461913,94067.0,94066.0,0.50548002]
[1732142018816,0.02335813,94067.0,94066.0,0.50548002]
[1732142019239,0.00209713,94067.0,94066.0,0.50548002]
[1732142019445,5.3e-07,94068.0,94067.0,0.136307]
[1732142019644,5.3e-07,94068.0,94067.0,0.34342212]
[1732142022756,0.58045193,94078.0,94067.0,0.34342212]
[1732142022958,0.51667493,94078.0,94077.0,0.21732345]
[1732142023160,0.51667493,94078.0,94077.0,0.31732345]
[1732142023359,0.47415693,94078.0,94077.0,0.31732345]
[1732142024585,0.45289793,94078.0,94077.0,0.31732345]
[1732142024953,0.36786193,94078.0,94077.0,0.31732345]
[1732142025303,0.34660293,94078.0,94077.0,0.31732345]